Workbook

Sheet Hoja1
B2: FORMATO PARA INFORMAR DEL CALCULO DEL
B3: PRESUPUESTO ENERGÉTICO
B5: 1. Datos Generales
B7: 1.1. | C7: Propietario
C9: Nombre | E9: Clima cálido
C11: Dirección | E11: Calle limpia
C13: Colonia | E13: Modelo
C15: Ciudad
C17: Estado
C19: Codigo Postal
C21: Teléfono
B23: 1.2. | C23: Ubicación de la Obra
C25: Nombre | E25: Casa aislada clima cálido
C27: Dirección
C29: Colonia
C31: Ciudad | E31: Hermosillo
C33: Estado | E33: SONORA
C35: Codigo Postal
C37: Teléfono
B39: 1.3. | C39: Unidad de Verificación
C41: Nombre
C43: Dirección
C45: Colonia
C47: Ciudad
C49: Estado
C51: Codigo Postal | H51: N° de Registro
C53: Teléfono | H53: Fax
C55: E-mail
B58: 1A. Descripción del Edificio a Evaluar
B60: 1A.1 | C60: Dimensiones Generales | F60: (Se deberán completar todas las celdas de color verde de este formato de cálculo)
C62: Niveles | D62: 2 | M62: Unidades Adosadas | N62: 1
C64: Techo | D64: =(N64*$N$62)+Q64 -> 56.7 | M64: Techo 1 | N64: 38.7 | P64: Techo 2 | Q64: 18 | S64: Domos | T64: =2*(0.84*0.84) -> 1.4112
C66: Muro norte | D66: =(N66*$N$62)+Q66 -> 33 | M66: Muro norte 1 | N66: 16.5 | P66: Muro norte 2 | Q66: 16.5
C68: Ventana Norte | D68: =(N68*$N$62)+Q68 -> 6.8421 | M68: Ventana Norte | N68: =(2.35*1.13)+(1.75*2.2) -> 6.5055 | P68: Ventana Norte | Q68: =(0.51*0.66) -> 0.3366
C70: Puerta Norte | D70: =(N70*$N$62)+Q70 -> 1.68 | M70: Puerta Norte | P70: Puerta Norte | Q70: 1.68
C72: Muro este | D72: =(N72*$N$62)+Q72 -> 40.845 | M72: Muro este 1 | N72: =N84 -> 23.5125 | P72: Muro este 2 | Q72: =Q84 -> 17.3325
C74: Ventana este | D74: =(N74*$N$62)+Q74 -> 2.1235 | M74: Ventana este | N74: =(1.37*1.55) -> 2.1235 | P74: Ventana este
C76: Puerta este | D76: =(N76*$N$62)+Q76 -> 0 | M76: Puerta este | P76: Puerta este
C78: Muro sur | D78: =(N78*$N$62)+Q78 -> 33 | M78: Muro sur 1 | N78: =(6*2.65) -> 15.9 | P78: Muro sur 2 | Q78: =(6*2.85) -> 17.1
C80: Ventana sur | D80: =(N80*$N$62)+Q80 -> 6.975 | M80: Ventana sur | P80: Ventana sur | Q80: =(4.5*1.55) -> 6.975
C82: Puerta sur | D82: =(N82*$N$62)+Q82 -> 2.2 | M82: Puerta sur | N82: 2.2 | P82: Puerta sur
C84: Muro oeste | D84: =(N84*$N$62)+Q84 -> 40.845 | M84: Muro oeste 1 | N84: =(8.25*2.85) -> 23.5125 | P84: Muro oeste 2 | Q84: =(6.45*2.65)+(1.2*0.2) -> 17.3325
C86: Ventana oeste | D86: =(N86*$N$62)+Q86 -> 0.3366 | M86: Ventana oeste | N86: =(0.66*0.51) -> 0.3366 | P86: Ventana oeste
C88: Puerta oeste | D88: =(N88*$N$62)+Q88 -> 0 | M88: Puerta oeste | P88: Puerta oeste
B90: 1A.2 | C90: Dimensiones de ventanas | M90: Superficie Inferior | N90: =6*1.2 -> 7.2
C92: Ventana Norte | D92: =D68 -> 6.8421
C94: Ventana Este | D94: =D74 -> 2.1235
C96: Ventana Sur | D96: =D80 -> 6.975
C98: Ventana Oeste | D98: =D86 -> 0.3366
C100: Domos | D100: =T64 -> 1.4112
A109: LISTA DE CIUDADES
C111: ='Tabla 1'!B6 -> Aguascalientes
C112: ='Tabla 1'!B7 -> La Paz
C113: ='Tabla 1'!B8 -> Cabo S. Lucas
C114: ='Tabla 1'!B9 -> Ensenada
C115: ='Tabla 1'!B10 -> Mexicali
C116: ='Tabla 1'!B11 -> Tijuana
C117: ='Tabla 1'!B12 -> Campeche
C118: ='Tabla 1'!B13 -> Cd. Carmen
C119: ='Tabla 1'!B14 -> Monclova
C120: ='Tabla 1'!B15 -> Piedras Negras
C121: ='Tabla 1'!B16 -> Saltillo
C122: ='Tabla 1'!B17 -> Torreón
C123: ='Tabla 1'!B18 -> Colima
C124: ='Tabla 1'!B19 -> Manzanillo
C125: ='Tabla 1'!B20 -> Arriaga
C126: ='Tabla 1'!B21 -> Comitán
C127: ='Tabla 1'!B22 -> San Cristóbal
C128: ='Tabla 1'!B23 -> Tapachula
C129: ='Tabla 1'!B24 -> Tuxtla Gutiérrez
C130: ='Tabla 1'!B25 -> Casas Grandes
C131: ='Tabla 1'!B26 -> Chihuahua
C132: ='Tabla 1'!B27 -> C. Juárez
C133: ='Tabla 1'!B28 -> H. del Parral
C134: ='Tabla 1'!B29 -> México (a)
C135: ='Tabla 1'!B30 -> Durango
C136: ='Tabla 1'!B31 -> Lerdo
C137: ='Tabla 1'!B32 -> Guanajuato
C138: ='Tabla 1'!B33 -> León (b)
C139: ='Tabla 1'!B34 -> Acapulco
C140: ='Tabla 1'!B35 -> Chilpancingo
C141: ='Tabla 1'!B36 -> Zihuatanejo
C142: ='Tabla 1'!B37 -> Pachuca
C143: ='Tabla 1'!B38 -> Tulancingo
C144: ='Tabla 1'!B39 -> Guadalajara ( c)
C145: ='Tabla 1'!B40 -> Huejucar
C146: ='Tabla 1'!B41 -> Lagos de Mor.
C147: ='Tabla 1'!B42 -> Ocotlán
C148: ='Tabla 1'!B43 -> Puerto Vallarta
C149: ='Tabla 1'!B44 -> Chapingo, Texc.
C150: ='Tabla 1'!B45 -> Toluca
C151: ='Tabla 1'!B46 -> Morelia
C152: ='Tabla 1'!B47 -> Lázaro Carden.
C153: ='Tabla 1'!B48 -> Uruapan
C154: ='Tabla 1'!B49 -> Cuernavaca
C155: ='Tabla 1'!B50 -> Cuautla
C156: ='Tabla 1'!B51 -> Tepic
C157: ='Tabla 1'!B52 -> Monterrey (d)
C158: ='Tabla 1'!B53 -> Oaxaca
C159: ='Tabla 1'!B54 -> Salina Cruz
C160: ='Tabla 1'!B55 -> Puebla
C161: ='Tabla 1'!B56 -> Atlixco
C162: ='Tabla 1'!B57 -> Tehuacán
C163: ='Tabla 1'!B58 -> Querétaro
C164: ='Tabla 1'!B59 -> San Juan del Río
C165: ='Tabla 1'!B60 -> Cozumel
C166: ='Tabla 1'!B61 -> Chetumal
C167: ='Tabla 1'!B62 -> Cancún
C168: ='Tabla 1'!B63 -> Playa Carmen
C169: ='Tabla 1'!B64 -> Río Verde
C170: ='Tabla 1'!B65 -> San Luis Potosí
C171: ='Tabla 1'!B66 -> Cd. Valles
C172: ='Tabla 1'!B67 -> Matehuala
C173: ='Tabla 1'!B68 -> Culiacán
C174: ='Tabla 1'!B69 -> Mazatlán
C175: ='Tabla 1'!B70 -> Guasave
C176: ='Tabla 1'!B71 -> Mochis, Los
C177: ='Tabla 1'!B72 -> Guaymas
C178: ='Tabla 1'!B73 -> Hermosillo
C179: ='Tabla 1'!B74 -> Obregón
C180: ='Tabla 1'!B75 -> Navojoa
C181: ='Tabla 1'!B76 -> Nogales
C182: ='Tabla 1'!B77 -> Villahermosa
C183: ='Tabla 1'!B78 -> Comalcalco
C184: ='Tabla 1'!B79 -> Cd. Victoria
C185: ='Tabla 1'!B80 -> Tampico
C186: ='Tabla 1'!B81 -> Matamoros
C187: ='Tabla 1'!B82 -> Reynosa
C188: ='Tabla 1'!B83 -> Nuevo Laredo
C189: ='Tabla 1'!B84 -> Tlaxcala
C190: ='Tabla 1'!B85 -> Coatzacoalcos
C191: ='Tabla 1'!B86 -> Córdoba
C192: ='Tabla 1'!B87 -> Jalapa
C193: ='Tabla 1'!B88 -> Orizaba
C194: ='Tabla 1'!B89 -> Tuxpan
C195: ='Tabla 1'!B90 -> Poza Rica
C196: ='Tabla 1'!B91 -> Veracruz
C197: ='Tabla 1'!B92 -> Mérida
C198: ='Tabla 1'!B93 -> Progreso
C199: ='Tabla 1'!B94 -> Valladolid
C200: ='Tabla 1'!B95 -> Fresnillo
C201: ='Tabla 1'!B96 -> Zacatecas

Sheet Hoja2
B2: 2. Valores para el Cálculo de la ganancia de Calor a través de la Envolvente (*)
B4: 2.1. | C4: Ciudad | D4: =Hoja1!E31 -> Hermosillo
C6: Latitud | D6: =VLOOKUP($D$4,'Tabla 1'!$B$6:$AD$96,27,FALSE) -> 29.9 | F6: =VLOOKUP($D$4,'Tabla 1'!$B$6:$AD$96,28,FALSE) -> -110.96
B8: 2.2. | C8: Temperatura equivalente promedio "te" (°C)
C10: a). Techo | D10: =VLOOKUP($D$4,'Tabla 1'!$B$6:$AA$96,7,FALSE) -> 48 | F10: =VLOOKUP($D$4,'Tabla 1'!$B$6:$AA$96,5,FALSE) -> 25 | G10: b). Superficie inferior | J10: =VLOOKUP($D$4,'Tabla 1'!$B$6:$AA$96,6,FALSE) -> 33
C12: c). Muros | G12: d). Partes transparentes
D14: Masivo | F14: Ligero | H14: Tragaluz y domo | J14: =VLOOKUP($D$4,'Tabla 1'!$B$6:$AA$96,16,FALSE) -> 28
C16: Norte | D16: =VLOOKUP($D$4,'Tabla 1'!$B$6:$AA$96,8,FALSE) -> 34 | F16: =VLOOKUP($D$4,'Tabla 1'!$B$6:$AA$96,12,FALSE) -> 39 | H16: Ventana | J16: =VLOOKUP($D$4,'Tabla 1'!$B$6:$AA$96,17,FALSE) -> 29
C18: Este | D18: =VLOOKUP($D$4,'Tabla 1'!$B$6:$AA$96,9,FALSE) -> 38 | F18: =VLOOKUP($D$4,'Tabla 1'!$B$6:$AA$96,13,FALSE) -> 43 | J18: =VLOOKUP($D$4,'Tabla 1'!$B$6:$AA$96,18,FALSE) -> 30
C20: Sur | D20: =VLOOKUP($D$4,'Tabla 1'!$B$6:$AA$96,10,FALSE) -> 35 | F20: =VLOOKUP($D$4,'Tabla 1'!$B$6:$AA$96,14,FALSE) -> 41 | J20: =VLOOKUP($D$4,'Tabla 1'!$B$6:$AA$96,19,FALSE) -> 31
C22: Oeste | D22: =VLOOKUP($D$4,'Tabla 1'!$B$6:$AA$96,11,FALSE) -> 36 | F22: =VLOOKUP($D$4,'Tabla 1'!$B$6:$AA$96,15,FALSE) -> 43 | J22: =VLOOKUP($D$4,'Tabla 1'!$B$6:$AA$96,20,FALSE) -> 31
B24: 2.3. | C24: Coeficiente de transferencia de calor "K" del edificio de referecia (W/m2K)
C26: Techo | D26: =VLOOKUP($D$4,'Tabla 1'!$B$6:$AA$96,2,FALSE) -> 0.476 | G26: Muro | H26: =IF(Hoja1!D62>3,VLOOKUP($D$4,'Tabla 1'!$B$6:$AA$96,4,FALSE),VLOOKUP($D$4,'Tabla 1'!$B$6:$AA$96,2,FALSE)) -> 0.476
C28: Tragaluz y domo | E28: 5.952 | H28: Ventana | I28: 5.319
B30: 2.4. | C30: Factor de ganancia de calor solar "FG" (W/m2K)
C32: Tragaluz y domo | E32: =VLOOKUP($D$4,'Tabla 1'!$B$6:$AA$96,21,FALSE) -> 322
C34: Norte | D34: =VLOOKUP($D$4,'Tabla 1'!$B$6:$AA$96,22,FALSE) -> 70
C36: Este | D36: =VLOOKUP($D$4,'Tabla 1'!$B$6:$AA$96,23,FALSE) -> 159
C38: Sur | D38: =VLOOKUP($D$4,'Tabla 1'!$B$6:$AA$96,24,FALSE) -> 131
C40: Oeste | D40: =VLOOKUP($D$4,'Tabla 1'!$B$6:$AA$96,25,FALSE) -> 164
B42: 2.5. | C42: Barrera para vapor
C44: SI | F44: NO
B46: 2.6. | C46: Factor de corrección de sombreado exterior (SE)
C48: Número (**) | F48: 1 | H48: 2 | J48: 3 | L48: 4
C50: L/H o P/E (***) | H50: =0.7/1.55 -> 0.4516129032
C52: W/H o W/E (***) | H52: =4.5/1.55 -> 2.903225806
C54: Norte
C56: Este/Oeste
C58: Sur | H58: 0.501
C60: * Los valores se optienen de la Tabla 1 para los incisos 2.2 a 2.5 y de la Tabla 2,3,4 y 5 para el inciso 2.6
C61: ** Si las ventanas tienen algun tipo de sombreado se deberá usar una columna para cada tipo
C62: *** Indicar el tipo de sombreado: 1 volado simple, 2 volado extendido, 3 ventana remetida y 4 partesol

Sheet Hoja3 (Muro Concreto)
B2: 3. Cálculo del Coeficiente Global de Transferencia de Calor de las porciones de la Envolvente(*)
B4: 3.1. | C4: Descripcion de la porción | F4: Muro de concreto aparente | J4: Número(**) | K4: 1
C6: Componente de la envolvente | H6: Techo | I6: X | J6: Pared
C9: Material | F9: Espesor | H9: Conductividad | J9: M
F10: (m) | H10: térmica | J10: Aislamiento térmico
F11: 1 | H11: (w/mK) | J11: (m2K/W)
C13: Convección exterior (*****) | F13: 1 | H13: 13 | J13: =F13/H13 -> 0.07692307692
C15: Concreto armado | F15: 0.12 | H15: 1.74 | J15: =F15/H15 -> 0.06896551724
C17: Mortero de cal al interior | F17: 0.01 | H17: 0.698 | J17: =F17/H17 -> 0.01432664756
C33: Convección interior | F33: 1 | H33: 8.1 | J33: =F33/H33 -> 0.1234567901
C35: Para optener el aislamiento térmico total, sumar la M de todos | I35: M | J35: =SUM(J13:J33) -> 0.2836720319 | K35: m2K/W
C36: los materiales más la convección exterior e interior
C37: [ Formula M= | E37: S M]
C39: Coeficiente Global de transferencia de calor de la porción (k) | I39: K | J39: =1/J35 -> 3.52519772 | K39: W/m2K
C40: [ Formula K= | E40: 1/M]

Sheet Hoja3 (Muro Concreto celular)
B2: 3. Cálculo del Coeficiente Global de Transferencia de Calor de las porciones de la Envolvente(*)
B4: 3.1. | C4: Descripcion de la porción | F4: Muro de concreto celular | J4: Número(**) | K4: 2
C6: Componente de la envolvente | H6: Techo | I6: X | J6: Pared
C9: Material | F9: Espesor | H9: Conductividad | J9: M
F10: (m) | H10: térmica | J10: Aislamiento térmico
F11: 1 | H11: (w/mK) | J11: (m2K/W)
C13: Convección exterior (*****) | F13: 1 | H13: 13 | J13: =F13/H13 -> 0.07692307692
C15: Mortero de cal al exterior | F15: 0.01 | H15: 0.872 | J15: =F15/H15 -> 0.01146788991
C17: Bloque de concreto celular (densidad 500 kg/m2) | F17: 0.14 | H17: 0.19 | J17: =F17/H17 -> 0.7368421053
C19: Mortero de cal al interior | F19: 0.01 | H19: 0.698 | J19: =F19/H19 -> 0.01432664756
C33: Convección interior | F33: 1 | H33: 8.1 | J33: =F33/H33 -> 0.1234567901
C35: Para optener el aislamiento térmico total, sumar la M de todos | I35: M | J35: =SUM(J13:J33) -> 0.9630165098 | K35: m2K/W
C36: los materiales más la convección exterior e interior
C37: [ Formula M= | E37: S M]
C39: Coeficiente Global de transferencia de calor de la porción (k) | I39: K | J39: =1/J35 -> 1.038403797 | K39: W/m2K
C40: [ Formula K= | E40: 1/M]

Sheet Hoja3 (Puerta)
B2: 3. Cálculo del Coeficiente Global de Transferencia de Calor de las porciones de la Envolvente(*)
B4: 3.1. | C4: Descripcion de la porción | F4: Puerta exterior | J4: Número(**) | K4: 3
C6: Componente de la envolvente | H6: Techo | I6: X | J6: Pared
C9: Material | F9: Espesor | H9: Conductividad | J9: M
F10: (m) | H10: térmica | J10: Aislamiento térmico
F11: 1 | H11: (w/mK) | J11: (m2K/W)
C13: Convección exterior (*****) | F13: 1 | H13: 13 | J13: =F13/H13 -> 0.07692307692
C15: Madera blanda | F15: 0.036 | H15: 0.13 | J15: =F15/H15 -> 0.2769230769
C33: Convección interior | F33: 1 | H33: 8.1 | J33: =F33/H33 -> 0.1234567901
C35: Para optener el aislamiento térmico total, sumar la M de todos | I35: M | J35: =SUM(J13:J33) -> 0.477302944 | K35: m2K/W
C36: los materiales más la convección exterior e interior
C37: [ Formula M= | E37: S M]
C39: Coeficiente Global de transferencia de calor de la porción (k) | I39: K | J39: =1/J35 -> 2.095105452 | K39: W/m2K
C40: [ Formula K= | E40: 1/M]

Sheet Hoja3 (Losa)
B2: 3. Cálculo del Coeficiente Global de Transferencia de Calor de las porciones de la Envolvente(*)
B4: 3.1. | C4: Descripcion de la porción | F4: Losa plana de concreto aislada | J4: Número(**) | K4: 4
C6: Componente de la envolvente | G6: X | H6: Techo | J6: Pared
C9: Material | F9: Espesor | H9: Conductividad | J9: M
F10: (m) | H10: térmica | J10: Aislamiento térmico
F11: 1 | H11: (w/mK) | J11: (m2K/W)
C13: Convección exterior (*****) | F13: 1 | H13: 13 | J13: =F13/H13 -> 0.07692307692
C15: Losa de concreto armado | F15: 0.15 | H15: 1.74 | J15: =F15/H15 -> 0.08620689655
C17: Aislante térmico certificado (NOM-018) | F17: 0.038 | H17: 0.04 | J17: =F17/H17 -> 0.95
C19: Mortero de cal al exterior | F19: 0.017 | H19: 0.872 | J19: =F19/H19 -> 0.01949541284
C25: Losa de concreto armado | F25: 0.1 | H25: 1.74 | J25: =F25/H25 -> 0.05747126437
C33: Convección interior | F33: 1 | H33: 9.4 | J33: =F33/H33 -> 0.1063829787
C35: Para optener el aislamiento térmico total, sumar la M de todos | I35: M | J35: =J13+J15+J17+J19+J33 -> 1.239008365 | K35: m2K/W
C36: los materiales más la convección exterior e interior
C37: [ Formula M= | E37: S M]
C39: Coeficiente Global de transferencia de calor de la porción (k) | I39: K | J39: =1/J35 -> 0.8070970529 | K39: W/m2K
C40: [ Formula K= | E40: 1/M]

Sheet Superficie No Homogénea 1 techo
B2: 3. Cálculo del Coeficiente Global de Transferencia de Calor de las Porciones de la Envolvente (*)
B3: (Háganse tantas hojas como porciones diferentes de la envolvente se tengan)
B5: 3.1. | C5: Descripción de la Porción No Homogénea (a) | E5: losa de vigueta y bovedilla | I5: Número (**) | J5: 5
C7: Componente de la envolvente | F7: X | G7: Techo | I7: Pared
C9: Área de la componente en m2 (A) | E9: =G9*I9 -> 0.11 | F9: = | G9: 0.11 | H9: x | I9: 1
C12: Área que ocupa la componente no homogénea 1 | G12: =(G9-G16)*I9 -> 0.0924
C14: Fracción de la combinación (F1) (b) | E14: =G12/E9 -> 0.84
C16: Área que ocupa la componente no homogénea 2 | G16: =(0.11*0.16) -> 0.0176
C18: Fracción de la combinación (F2) | E18: =1-E14 -> 0.16
B21: 3.2. | C21: Aislamiento térmico parcial
C23: Material | E23: Espesor | G23: Conductividad | I23: M
C24: (***) | E24: (m) | G24: térmica | I24: Aislamiento térmico
E25: 1 | G25: (w/mK) | I25: (m2K/W)
C27: Convección exterior (*****) | E27: 1 | G27: 13 | I27: =E27/G27 -> 0.07692307692
C29: Impermeabilizante | E29: 0.002 | G29: 0.17 | I29: =E29/G29 -> 0.01176470588
C31: Concreto armado | E31: 0.05 | G31: 1.74 | I31: =E31/G31 -> 0.02873563218 | M31: 0.11 | N31: 100
C33: Material aislante certificado (NOM-018) | E33: 0.038 | G33: 0.04 | I33: =E33/G33 -> 0.95 | M33: =(N33*M31)/N31 -> 0.0176 | N33: 16
C35: Yeso al Interior | E35: 0.005 | G35: 0.372 | I35: =E35/G35 -> 0.01344086022
M37: 0.11
C39: Convección interior | E39: 1 | G39: 6.6 | I39: =E39/G39 -> 0.1515151515
B41: Para optener el aislamiento térmico total, sumar la M de | H41: M parcial | I41: =SUM(I27:I39) -> 1.232379427 | J41: m2K/W
B42: todos los materiales más la convección exterior e interior
C44: [ Formula Mparcial = S M ]
B46: * | C46: Estos valores se obtienen en el Apéndice D de la NOM-020-ENER-2011
B47: ** | C47: Dar un número consecutivo (1,2…N) el cual será indicado en el inciso 4.3
B48: *** | C48: Anotar los materiales que forman la porción homogénea. Por ejemplo, en un muro estructurado formado por: madera
C49: con triplay y mortero en la superficie exterior, tablero de yeso en la superficie interior y entre ambos una estructura
C50: de madera con polines verticales y aislantes térmicos. Solo se deben poner los que forman la superficie exterior e
C51: interior, que es la porción homogénea. Véase apéndice B, inciso B.2 de la Norma
B52: **** | C52: Para los materiales se utilizan valores del apéndice D de la NOM-020-ENER, o los proporcionados por los fabricantes
B53: ***** | C53: Para la convección exterior e interior se utilizan los valores de L1, calculados de acuerdo al apéndice "B"
B54: (a) | C54: Veáse apéndice B inciso B.2 de la Norma
B55: (b) | C55: El número de fracciones depende del número de materiales que se quieren colocar en la superficie exterior e interior

Sheet Superficie No Homogénea 2 techo
B2: 3. Cálculo del Coeficiente Global de Transferencia de Calor de las Porciones de la Envolvente (*)
B3: (Háganse tantas hojas como porciones diferentes de la envolvente se tengan)
B5: 3.3 | C5: Aislamiento Térmico parcial (Mparcial) | I5: ='Superficie No Homogénea 1 techo'!I41 -> 1.232379427
C7: Fracción | E7: Material | G7: Grueso (m) | I7: Conductividad | K7: g/
C8: (F) | E8: (***) | G8: g | I8: térmica
G9: (****) | I9: (w/mK)
B11: F1 | C11: 0.84 | E11: Material aislante certificado (NOM-018) | G11: 0.11 | I11: 0.04 | K11: =G11/I11 -> 2.75
K13: =SUM(K11:K12) -> 2.75
M15: =C11/(I5+K13) -> 0.2109291732
B17: F2 | C17: 0.16 | E17: Concreto armado | G17: =G11 -> 0.11 | I17: 1.74 | K17: =G17/I17 -> 0.0632183908
K20: =SUM(K17:K19) -> 0.0632183908
M22: =C17/(I5+K20) -> 0.1234951139
G25: =M15+M22 -> 0.3344242871
H29: M= | I29: =1/G25 -> 2.990213446
B34: Coeficiente global de transferencia de calor de la porción (k)
E36: [ Formula K = 1/M ] | I36: =1/I29 -> 0.3344242871
B38: ***** | C38: Para la convección exterior e interior se utilizan los valores de L1, calculados de acuerdo al apéndice "B"
B39: (a) | C39: Veáse apéndice B inciso B.2 de la norma
B40: (b) | C40: El número de fracciones depende del numero de materiales que se quieren colocar en la superficie exterior e interior

Sheet Edif.REF
B2: 4. Cálculo Comparativo de la Ganancia de Calor
B4: 4.1 | C4: Edificio de referencia
B6: 4.1.1. | C6: Ganancias por conducción (partes opacas y transparentes)
C8: Tipo y orientacion | E8: Tranferencia | G8: Area del | I8: Fracción de la | K8: Temp. | M8: Temp. | O8: Ganancia por
C9: de la porcion de | E9: de Calor | G9: edificio | I9: componente | K9: equivalente | M9: Interior | O9: Conducción
C10: la envolvente | E10: (W/m2K) | G10: proyectado | I10: [F] | K10: (te) | M10: (t) | O10: [K*A*F*(te-t)]
E11: [K] | G11: (m2)
G12: [A]
C14: Techo | E14: =Hoja2!D26 -> 0.476 | G14: =Hoja1!D64 -> 56.7 | I14: 1 | K14: =Hoja2!D10 -> 48 | M14: =Hoja2!F10 -> 25 | O14: =(E14*G14*I14*(K14-M14)) -> 620.7516
C16: Tragaluz y domo | E16: =Hoja2!E28 -> 5.952 | I16: 0 | K16: =Hoja2!J14 -> 28 | M16: =M14 -> 25 | O16: =(E16*G14*I16*(K16-M16)) -> 0
C18: Muro Norte | E18: =Hoja2!H26 -> 0.476 | G18: =Hoja1!D66 -> 33 | I18: 0.9 | K18: =Hoja2!D16 -> 34 | M18: =M14 -> 25 | O18: =(E18*G18*I18*(K18-M18)) -> 127.2348
C20: Ventana Norte | E20: =Hoja2!I28 -> 5.319 | I20: 0.1 | K20: =Hoja2!J16 -> 29 | M20: =M14 -> 25 | O20: =(E20*G18*I20*(K20-M20)) -> 70.2108
C22: Muro Este | E22: =Hoja2!H26 -> 0.476 | G22: =Hoja1!D72 -> 40.845 | I22: 0.9 | K22: =Hoja2!D18 -> 38 | M22: =M14 -> 25 | O22: =(E22*G22*I22*(K22-M22)) -> 227.473974
C24: Ventana Este | E24: =Hoja2!I28 -> 5.319 | I24: 0.1 | K24: =Hoja2!J18 -> 30 | M24: =M14 -> 25 | O24: =(E24*G22*I24*(K24-M24)) -> 108.6272775
C26: Muro Sur | E26: =Hoja2!H26 -> 0.476 | G26: =Hoja1!D78 -> 33 | I26: 0.9 | K26: =Hoja2!D20 -> 35 | M26: =M14 -> 25 | O26: =(E26*G26*I26*(K26-M26)) -> 141.372
C28: Ventana Sur | E28: =Hoja2!I28 -> 5.319 | I28: 0.1 | K28: =Hoja2!J20 -> 31 | M28: =M14 -> 25 | O28: =(E28*G26*I28*(K28-M28)) -> 105.3162
C30: Muro Oeste | E30: =Hoja2!H26 -> 0.476 | G30: =Hoja1!D72 -> 40.845 | I30: 0.9 | K30: =Hoja2!D22 -> 36 | M30: =M14 -> 25 | O30: =(E30*G30*I30*(K30-M30)) -> 192.477978
C32: Ventana Oeste | E32: =Hoja2!I28 -> 5.319 | I32: 0.1 | K32: =Hoja2!J22 -> 31 | M32: =M14 -> 25 | O32: =(E32*G30*I32*(K32-M32)) -> 130.352733
C34: Techo (sup. Inf) | E34: =Hoja2!D26 -> 0.476 | G34: =Hoja1!N90 -> 7.2 | I34: 1 | K34: =Hoja2!J10 -> 33 | M34: =M14 -> 25 | O34: =(E34*G34*I34*(K34-M34)) -> 27.4176
B36: * Nota: Si los valores son negativos significa una bonificación , | J36: SUBTOTAL | O36: =SUM(O14:O34) -> 1751.234962
C37: por lo que deben sumarse algebraicamente
B40: 4.1.2. | C40: Ganancias por radiación (partes transparentes)
C42: Tipo y orientacion | E42: Coeficiente | G42: Area del | I42: Fracción de la | K42: Ganancia | M42: Ganancia por
C43: de la porcion de | E43: de | G43: edificio | I43: componente | K43: de | M43: Radiación
C44: la envolvente | E44: Sombreado | G44: proyectado | I44: [F] | K44: Calor | M44: f rs (*)
E45: (CS) | G45: (m2) | K45: (W/m2) | M45: [CS*A*F*FG]
G46: [A] | K46: [FG]
C48: Tragaluz y domo | E48: 1 | G48: =G14 -> 56.7 | I48: 0 | K48: =Hoja2!E32 -> 322 | M48: =E48*G48*I48*K48 -> 0
C50: Ventana norte | E50: 1 | G50: =G18 -> 33 | I50: 0.1 | K50: =Hoja2!D34 -> 70 | M50: =E50*G50*I50*K50 -> 231
C52: Ventana este | E52: 1 | G52: =G22 -> 40.845 | I52: 0.1 | K52: =Hoja2!D36 -> 159 | M52: =E52*G52*I52*K52 -> 649.4355
C54: Ventana sur | E54: 1 | G54: =G26 -> 33 | I54: 0.1 | K54: =Hoja2!D38 -> 131 | M54: =E54*G54*I54*K54 -> 432.3
C56: Ventana oeste | E56: 1 | G56: =G30 -> 40.845 | I56: 0.1 | K56: =Hoja2!D40 -> 164 | M56: =E56*G56*I56*K56 -> 669.858
J58: SUBTOTAL | M58: =SUM(M48:M56) -> 1982.5935

Sheet Edif. PROY conducc
B2: 4. Cálculo Comparativo de la Ganancia de Calor (continuación)
B4: 4.2 | C4: Edificio proyectado
B6: 4.2.1. | C6: Ganancias por conducción (partes opacas y transparentes)
C8: Tipo y orientacion | E8: Coeficiente Global de | I8: Area del edificio | K8: Temp. | M8: Temp. | O8: Ganancia por
C9: de la porcion de | D9: Transferencia de Calor (k) | I9: proyectado | K9: equivalente | M9: Interior | O9: Conducción
C10: la envolvente | E10: N° de | G10: Valor calculado | I10: (m2) | K10: (°C) | M10: (°C) | O10: f pc(****)
C11: (*) | E11: porción | G11: (W/m2K) | I11: [A] | K11: [te] | M11: [t] | O11: [K*A*(te-t)]
E12: (**) | G12: (***)
M13: Subtotal 1
M15: Subtotal 2
M17: Subtotal 3
C19: T1_Techo | E19: ='Superficie No Homogénea 1 techo'!J5 -> 5 | G19: ='Superficie No Homogénea 2 techo'!I36 -> 0.3344242871 | I19: =Hoja1!N64-Hoja1!D100 -> 37.2888 | K19: =Hoja2!D10 -> 48 | M19: =Hoja2!F10 -> 25 | O19: =(G19*I19*(K19-M19)) -> 286.8164482
C21: D1_Domos | E21: 6* | G21: 2.27 | I21: =Hoja1!D100 -> 1.4112 | K21: =Hoja2!J14 -> 28 | M21: =M19 -> 25 | O21: =(G21*I21*(K21-M21)) -> 9.610272
C23: T2_Techo | E23: ='Superficie No Homogénea 1 techo'!J5 -> 5 | G23: ='Superficie No Homogénea 2 techo'!I36 -> 0.3344242871 | I23: =Hoja1!Q64 -> 18 | K23: =Hoja2!D10 -> 48 | M23: =M19 -> 25 | O23: =(G23*I23*(K23-M23)) -> 138.4516549
C25: SI_Superficie inferior | E25: ='Hoja3 (Losa)'!K4 -> 4 | G25: ='Hoja3 (Losa)'!J39 -> 0.8070970529 | I25: =Hoja1!N90 -> 7.2 | K25: =Hoja2!J10 -> 33 | M25: =M19 -> 25 | O25: =(G25*I25*(K25-M25)) -> 46.48879025
C27: MN_Muro Norte | E27: ='Hoja3 (Muro Concreto celular)'!K4 -> 2 | G27: ='Hoja3 (Muro Concreto celular)'!J39 -> 1.038403797 | I27: =Hoja1!D66-I29-I31 -> 24.4779 | K27: =Hoja2!D16 -> 34 | M27: =M19 -> 25 | O27: =(G27*I27*(K27-M27)) -> 228.7614986
C29: VN_Ventana Norte | E29: 6* | G29: 2.27 | I29: =Hoja1!D92 -> 6.8421 | K29: =Hoja2!J16 -> 29 | M29: =M19 -> 25 | O29: =(G29*I29*(K29-M29)) -> 62.126268
C31: PN_Puerta Norte | E31: ='Hoja3 (Puerta)'!K4 -> 3 | G31: ='Hoja3 (Puerta)'!J39 -> 2.095105452 | I31: =Hoja1!D70 -> 1.68 | K31: =Hoja2!F16 -> 39 | M31: =M19 -> 25 | O31: =(G31*I31*(K31-M31)) -> 49.27688022
C33: ME_Muro Este | E33: ='Hoja3 (Muro Concreto celular)'!K4 -> 2 | G33: ='Hoja3 (Muro Concreto celular)'!J39 -> 1.038403797 | I33: =Hoja1!D72-Hoja1!D94 -> 38.7215 | K33: =Hoja2!D18 -> 38 | M33: =M19 -> 25 | O33: =(G33*I33*(K33-M33)) -> 522.711184
C35: VE1_Ventana Este | E35: 6* | G35: 2.27 | I35: =Hoja1!D94 -> 2.1235 | K35: =Hoja2!J18 -> 30 | M35: =M19 -> 25 | O35: =(G35*I35*(K35-M35)) -> 24.101725
C37: MS1_Muro Sur 1 | E37: ='Hoja3 (Muro Concreto)'!K4 -> 1 | G37: ='Hoja3 (Muro Concreto)'!J39 -> 3.52519772 | I37: =Hoja1!N78-Hoja1!N82 -> 13.7 | K37: =Hoja2!D20 -> 35 | M37: =M19 -> 25 | O37: =(G37*I37*(K37-M37)) -> 482.9520877
C39: PS_Puerta Sur | E39: ='Hoja3 (Puerta)'!K4 -> 3 | G39: ='Hoja3 (Puerta)'!J39 -> 2.095105452 | I39: =Hoja1!N82 -> 2.2 | K39: =Hoja2!F20 -> 41 | M39: =M19 -> 25 | O39: =(G39*I39*(K39-M39)) -> 73.7477119
C41: MS2_Muro Sur 2 | E41: ='Hoja3 (Muro Concreto celular)'!K4 -> 2 | G41: ='Hoja3 (Muro Concreto celular)'!J39 -> 1.038403797 | I41: =Hoja1!Q78-I43 -> 10.125 | K41: =Hoja2!D20 -> 35 | M41: =M19 -> 25 | O41: =(G41*I41*(K41-M41)) -> 105.1383844
C43: VS_Ventana Sur | E43: 6* | G43: 2.27 | I43: =Hoja1!Q80 -> 6.975 | K43: =Hoja2!J20 -> 31 | M43: =M19 -> 25 | O43: =(G43*I43*(K43-M43)) -> 94.9995
C45: MO_Muro Oeste | E45: ='Hoja3 (Muro Concreto celular)'!K4 -> 2 | G45: ='Hoja3 (Muro Concreto celular)'!J39 -> 1.038403797 | I45: =Hoja1!D84-'Edif. PROY conducc '!I47 -> 40.5084 | K45: =Hoja2!D22 -> 36 | M45: =M19 -> 25 | O45: =(G45*I45*(K45-M45)) -> 462.7048399
C47: VO_Ventana Oeste | E47: 6* | G47: 2.27 | I47: =Hoja1!D98 -> 0.3366 | K47: =Hoja2!J22 -> 31 | M47: =M19 -> 25 | O47: =(G47*I47*(K47-M47)) -> 4.584492
C64: * Desde certificado NOM-024-ENER-2012 | I64: Total ( Sumar todas las f pc) | O64: =SUM(O19:O61) -> 2592.471737

Sheet Edf. PROY radiacion
B2: 4. Cálculo Comparativo de la Ganancia de Calor (continuación)
B4: 4.2.2. | C4: Ganancias por radiación (partes transparentes)
C6: Tipo y orientacion | G6: Coeficiente | K6: Ganancia | M6: Factor de | Q6: Ganancia por
C7: de la porcion de | E7: Material | G7: de | I7: Area | K7: de | N7: Sombreado ext. | Q7: Radiación
C8: la envolvente | E8: (**) | G8: Sombreado | I8: (m2) | K8: Calor | N8: [SE] | Q8: f pr
C9: (*) | G9: (CS) | I9: [A] | K9: (W/m2) | N9: (****) | Q9: [CS*A*FG*SE]
G10: (***) | K10: [FG] | M10: Numero | O10: Valor
C12: VN_Ventana Norte | E12: Doble vidrio LowE certificado (NOM-024) | G12: 0.6 | I12: =Hoja1!D92 -> 6.8421 | K12: =Hoja2!D34 -> 70 | M12: 1 | O12: 1 | Q12: =G12*I12*K12*O12 -> 287.3682
C14: VE_Ventana Este | E14: Doble vidrio LowE certificado (NOM-024) | G14: 0.6 | I14: =Hoja1!D94 -> 2.1235 | K14: =Hoja2!D36 -> 159 | M14: 1 | O14: 1 | Q14: =G14*I14*K14*O14 -> 202.5819
C16: VS_Ventana Sur | E16: Doble vidrio LowE certificado (NOM-024) | G16: 0.6 | I16: =Hoja1!D96 -> 6.975 | K16: =Hoja2!D38 -> 131 | M16: =Hoja2!H48 -> 2 | O16: =Hoja2!H58 -> 0.501 | Q16: =G16*I16*K16*O16 -> 274.665735
C18: VO_Ventana Oeste | E18: Doble vidrio LowE certificado (NOM-024) | G18: 0.6 | I18: =Hoja1!D98 -> 0.3366 | K18: =Hoja2!D40 -> 164 | M18: 1 | O18: 1 | Q18: =G18*I18*K18*O18 -> 33.12144
C20: D1_Domos | E20: Doble vidrio LowE certificado (NOM-024) | G20: 0.6 | I20: =Hoja1!D100 -> 1.4112 | K20: =Hoja2!E32 -> 322 | M20: 1 | O20: 1 | Q20: 272.64384
K42: Total ( Sumar todas las f pr) | Q42: =SUM(Q12:Q40) -> 1070.381115

Sheet Resumen
B2: 5. Resumen del Cálculo
B4: 5.1. | C4: Presupuesto Enérgetico
F6: Ganancia por Conducción (W) | I6: Ganancia por Radiación (W) | L6: Ganancia Total
L8: f r = f rc + f rs
L10: f p = f pc + f ps
L12: (W)
C14: Referencia | E14: (f rc) | F14: =Edif.REF!O36 -> 1751.234962 | H14: (f rs) | I14: =Edif.REF!M58 -> 1982.5935 | K14: (f r) | L14: =F14+I14 -> 3733.828462
C18: Proyectado | E18: (f pc) | F18: ='Edif. PROY conducc '!O64 -> 2592.471737 | H18: (f ps) | I18: ='Edf. PROY radiacion'!Q42 -> 1070.381115 | K18: (f p) | L18: =F18+I18 -> 3662.852852
B22: 5.2. | C22: Cumplimiento
D25: Si ( f r > f p) | F25: =IF(L18<=L14,"X"," ") -> X | J25: No ( f r < f p) | L25: =IF(L18>L14,"X"," ") -> 
L33: Ahorro de Energía
L34: =1-($L18/$L14) -> 0.0190088032

Sheet Etiqueta
C7: EFICIENCIA ENERGETICA
C8: Ganancia de Calor
C10: Determinada como se establece en la NOM -020-ENER-2011
C12: Ubicación de la Edificación
D14: Nombre | G14: =Hoja1!E25 -> Casa aislada clima cálido
D15: Dirección | G15: =Hoja1!E27 -> 0
D16: Colonia | G16: =Hoja1!E29 -> 0
D17: Ciudad | G17: =Hoja1!E31 -> Hermosillo
D18: Delegación:
D19: Entidad Federativa | G19: =Hoja1!E33 -> SONORA
D20: Codigo Postal
C22: Ganancia de Calor del Edificio de Referencia (Watts) | M22: =Resumen!L14 -> 3733.828462
C24: Ganancia de Calor del Edificio Proyectado (Watts) | M24: =Resumen!L18 -> 3662.852852
D26: Ahorro de Energía
D27: Ahorro de Energía de este Edificio
D30: 0 | E30: 0.1 | F30: 0.2 | G30: 0.3 | H30: 0.4 | I30: 0.5 | J30: 0.6 | K30: 0.7 | L30: 0.8 | M30: 0.9 | N30: 1
D32: Menor Ahorro | J32: Mayor Ahorro
C35: Fecha
C37: Nombre y Clave de la Unidad de Verificación
C40: Importante
C42: Cuando la ganancia de calor del edifico proyectado sea igual a la del edifico de referencia el ahorro sera del 0% y por lo tanto se cumple con la norma. La etiqueta no debe retirarse del edificio

Sheet Tabla 1
A1: ESTADO | B1: CIUDAD | C1: K de referencia (W/m2 K) | F1: CONDUCCIÓN | V1: RADIACIÓN | AA1: Barrera para vapor | AB1: Posición geográfica | AD1: Altitud
F2: OPACA | Q2: TRANSPARENTES | V2: TRANSPARENTE
F3: Temperatura equivalente promedio te (°C)
C4: Hasta tres niveles Conjunto horizontal con muros compartidos | D4: Más de tres niveles | F4: T interior | G4: Superficie interior | H4: Techo | I4: Muro masivo | M4: Muro ligero | Q4: Tragaluz y domo | R4: Ventanas | V4: Factor de ganancia solar promedio FG (W/m2) | AE4: Estados
C5: Techo y muro | D5: Techo | E5: Muro | I5: N | J5: E | K5: S | L5: O | M5: N | N5: E | O5: S | P5: O | R5: N | S5: E | T5: S | U5: O | V5: Tragaluz y domo | W5: N | X5: E | Y5: S | Z5: O | AB5: Latitud | AC5: Longitud
A6: AGUASCALIENTES | B6: Aguascalientes | C6: 0.833 | D6: 0.833 | E6: 0.909 | F6: 24 | G6: 26 | H6: 37 | I6: 24 | J6: 27 | K6: 26 | L6: 25 | M6: 30 | N6: 33 | O6: 32 | P6: 32 | Q6: 22 | R6: 23 | S6: 24 | T6: 24 | U6: 24 | V6: 274 | W6: 91 | X6: 137 | Y6: 118 | Z6: 146 | AB6: 21.88 | AC6: -102.29 | AD6: 1877 | AE6: AGUASCALIENTES
A7: BAJA CALIFORNIA SUR | B7: La Paz | C7: 0.526 | D7: 0.526 | E7: 0.714 | F7: 25 | G7: 31 | H7: 45 | I7: 31 | J7: 34 | K7: 32 | L7: 33 | M7: 36 | N7: 40 | O7: 38 | P7: 39 | Q7: 26 | R7: 27 | S7: 28 | T7: 29 | U7: 29 | V7: 322 | W7: 70 | X7: 159 | Y7: 131 | Z7: 164 | AA7: Sí | AB7: 24.15 | AC7: -110.31 | AD7: 38 | AE7: BAJA_CALIFORNIA_SUR
B8: Cabo S. Lucas | C8: 0.526 | D8: 0.526 | E8: 0.714 | F8: 25 | G8: 30 | H8: 44 | I8: 30 | J8: 34 | K8: 32 | L8: 32 | M8: 36 | N8: 39 | O8: 38 | P8: 39 | Q8: 25 | R8: 27 | S8: 28 | T8: 28 | U8: 28 | V8: 322 | W8: 70 | X8: 159 | Y8: 131 | Z8: 164 | AA8: Sí | AB8: 22.89 | AC8: -109.92 | AD8: 24 | AE8: BAJA_CALIFORNIA
A9: BAJA CALIFORNIA | B9: Ensenada | C9: 0.909 | D9: 0.909 | E9: 0.909 | F9: 24 | G9: 25 | H9: 35 | I9: 22 | J9: 25 | K9: 24 | L9: 23 | M9: 28 | N9: 31 | O9: 30 | P9: 30 | Q9: 20 | R9: 22 | S9: 22 | T9: 22 | U9: 23 | V9: 322 | W9: 70 | X9: 159 | Y9: 131 | Z9: 164 | AA9: Sí | AB9: 20.55 | AC9: -103.3 | AD9: 21 | AE9: CAMPECHE
B10: Mexicali | C10: 0.476 | D10: 0.476 | E10: 0.556 | F10: 25 | G10: 34 | H10: 50 | I10: 36 | J10: 40 | K10: 37 | L10: 38 | M10: 41 | N10: 45 | O10: 43 | P10: 45 | Q10: 29 | R10: 30 | S10: 32 | T10: 32 | U10: 32 | V10: 322 | W10: 70 | X10: 159 | Y10: 131 | Z10: 164 | AB10: 20.55 | AC10: -103.31 | AD10: 5 | AE10: COAHUILA
B11: Tijuana | C11: 0.714 | D11: 0.714 | E11: 0.909 | F11: 23 | G11: 26 | H11: 37 | I11: 24 | J11: 27 | K11: 25 | L11: 25 | M11: 30 | N11: 33 | O11: 32 | P11: 32 | Q11: 22 | R11: 23 | S11: 24 | T11: 24 | U11: 24 | V11: 322 | W11: 70 | X11: 159 | Y11: 131 | Z11: 164 | AA11: Sí | AB11: 20.55 | AC11: -103.3 | AD11: 20 | AE11: COLIMA
A12: CAMPECHE | B12: Campeche | C12: 0.526 | D12: 0.526 | E12: 0.625 | F12: 25 | G12: 31 | H12: 45 | I12: 31 | J12: 35 | K12: 33 | L12: 33 | M12: 36 | N12: 40 | O12: 38 | P12: 40 | Q12: 26 | R12: 27 | S12: 29 | T12: 29 | U12: 29 | V12: 284 | W12: 95 | X12: 152 | Y12: 119 | Z12: 133 | AA12: Sí | AB12: 19.84 | AC12: -90.52 | AD12: 6 | AE12: CHIAPAS
B13: Cd. Carmen | C13: 0.526 | D13: 0.526 | E13: 0.625 | F13: 25 | G13: 31 | H13: 46 | I13: 32 | J13: 35 | K13: 33 | L13: 33 | M13: 37 | N13: 41 | O13: 39 | P13: 40 | Q13: 26 | R13: 28 | S13: 29 | T13: 29 | U13: 29 | V13: 284 | W13: 95 | X13: 152 | Y13: 119 | Z13: 133 | AA13: Sí | AB13: 18.65 | AC13: -91.83 | AD13: 3 | AE13: CHIHUAHUA
A14: COAHUILA | B14: Monclova | C14: 0.526 | D14: 0.526 | E14: 0.625 | F14: 25 | G14: 31 | H14: 45 | I14: 31 | J14: 34 | K14: 32 | L14: 33 | M14: 36 | N14: 40 | O14: 38 | P14: 39 | Q14: 26 | R14: 27 | S14: 28 | T14: 29 | U14: 29 | V14: 322 | W14: 70 | X14: 159 | Y14: 131 | Z14: 164 | AB14: 26.91 | AC14: -101.42 | AD14: 603 | AE14: D.F.
B15: Piedras Negras | C15: 0.526 | D15: 0.526 | E15: 0.625 | F15: 25 | G15: 31 | H15: 46 | I15: 32 | J15: 35 | K15: 33 | L15: 33 | M15: 37 | N15: 41 | O15: 39 | P15: 40 | Q15: 26 | R15: 28 | S15: 29 | T15: 29 | U15: 29 | V15: 322 | W15: 70 | X15: 159 | Y15: 131 | Z15: 164 | AA15: Sí | AB15: 28.7 | AC15: -100.53 | AD15: 225 | AE15: DURANGO
B16: Saltillo | C16: 0.833 | D16: 0.833 | E16: 0.909 | F16: 25 | G16: 27 | H16: 38 | I16: 25 | J16: 28 | K16: 26 | L16: 26 | M16: 30 | N16: 34 | O16: 33 | P16: 33 | Q16: 22 | R16: 24 | S16: 24 | T16: 24 | U16: 25 | V16: 322 | W16: 70 | X16: 159 | Y16: 131 | Z16: 164 | AB16: 25.43 | AC16: -101 | AD16: 1582 | AE16: GUANAJUATO
B17: Torreón | C17: 0.526 | D17: 0.526 | E17: 0.625 | F17: 25 | G17: 30 | H17: 43 | I17: 30 | J17: 33 | K17: 31 | L17: 31 | M17: 35 | N17: 39 | O17: 37 | P17: 38 | Q17: 25 | R17: 27 | S17: 28 | T17: 28 | U17: 28 | V17: 322 | W17: 70 | X17: 159 | Y17: 131 | Z17: 164 | AB17: 25.54 | AC17: -103.41 | AD17: 1125 | AE17: GUERRERO
A18: COLIMA | B18: Colima | C18: 0.556 | D18: 0.556 | E18: 0.909 | F18: 25 | G18: 29 | H18: 42 | I18: 28 | J18: 32 | K18: 30 | L18: 30 | M18: 34 | N18: 38 | O18: 36 | P18: 37 | Q18: 24 | R18: 26 | S18: 27 | T18: 27 | U18: 27 | V18: 274 | W18: 91 | X18: 137 | Y18: 118 | Z18: 146 | AA18: Sí | AB18: 19.24 | AC18: -103.73 | AD18: 500 | AE18: HIDALGO
B19: Manzanillo | C19: 0.526 | D19: 0.526 | E19: 0.625 | F19: 25 | G19: 31 | H19: 45 | I19: 31 | J19: 34 | K19: 32 | L19: 33 | M19: 36 | N19: 40 | O19: 38 | P19: 40 | Q19: 26 | R19: 27 | S19: 28 | T19: 29 | U19: 29 | V19: 274 | W19: 91 | X19: 137 | Y19: 118 | Z19: 146 | AA19: Sí | AB19: 19.5 | AC19: -104.32 | AD19: 11 | AE19: JALISCO
A20: CHIAPAS | B20: Arriaga | C20: 0.526 | D20: 0.526 | E20: 0.625 | F20: 25 | G20: 31 | H20: 46 | I20: 32 | J20: 35 | K20: 33 | L20: 33 | M20: 37 | N20: 41 | O20: 39 | P20: 40 | Q20: 26 | R20: 28 | S20: 29 | T20: 29 | U20: 29 | V20: 272 | W20: 102 | X20: 140 | Y20: 114 | Z20: 134 | AA20: Sí | AB20: 16.24 | AC20: -93.9 | AD20: 62 | AE20: MÉXICO
B21: Comitán | C21: 0.833 | D21: 0.833 | E21: 0.909 | F21: 23 | G21: 25 | H21: 35 | I21: 22 | J21: 24 | K21: 24 | L21: 23 | M21: 28 | N21: 31 | O21: 30 | P21: 30 | Q21: 20 | R21: 22 | S21: 22 | T21: 22 | U21: 23 | V21: 272 | W21: 102 | X21: 140 | Y21: 114 | Z21: 134 | AB21: 16.24 | AC21: -92.12 | AD21: 1586 | AE21: MICHOACAN
B22: San Cristóbal | C22: 0.909 | D22: 0.909 | E22: 0.909 | F22: 23 | G22: 22 | H22: 31 | I22: 19 | J22: 20 | K22: 20 | L22: 20 | M22: 25 | N22: 27 | O22: 27 | P22: 26 | Q22: 18 | R22: 20 | S22: 20 | T22: 20 | U22: 20 | V22: 272 | W22: 102 | X22: 140 | Y22: 114 | Z22: 134 | AB22: 16.74 | AC22: -92.64 | AD22: 2133 | AE22: MORELOS
B23: Tapachula | C23: 0.526 | D23: 0.526 | E23: 0.714 | F23: 25 | G23: 30 | H23: 44 | I23: 30 | J23: 33 | K23: 31 | L23: 32 | M23: 35 | N23: 39 | O23: 37 | P23: 38 | Q23: 25 | R23: 27 | S23: 28 | T23: 28 | U23: 28 | V23: 272 | W23: 102 | X23: 140 | Y23: 114 | Z23: 134 | AA23: Sí | AB23: 14.9 | AC23: -92.26 | AD23: 164 | AE23: NAYARIT
B24: Tuxtla Gutiérrez | C24: 0.556 | D24: 0.556 | E24: 0.833 | F24: 25 | G24: 29 | H24: 42 | I24: 29 | J24: 32 | K24: 30 | L24: 30 | M24: 34 | N24: 38 | O24: 36 | P24: 37 | Q24: 24 | R24: 26 | S24: 27 | T24: 27 | U24: 27 | V24: 272 | W24: 102 | X24: 140 | Y24: 114 | Z24: 134 | AA24: Sí | AB24: 16.75 | AC24: -93.12 | AD24: 539 | AE24: NUEVO_LEON
A25: CHIHUAHUA | B25: Casas Grandes | C25: 0.714 | D25: 0.714 | E25: 0.909 | F25: 25 | G25: 28 | H25: 40 | I25: 27 | J25: 30 | K25: 28 | L25: 28 | M25: 32 | N25: 35 | O25: 34 | P25: 35 | Q25: 23 | R25: 25 | S25: 25 | T25: 26 | U25: 26 | V25: 322 | W25: 70 | X25: 159 | Y25: 131 | Z25: 164 | AB25: 30.38 | AC25: -107.95 | AD25: 1474 | AE25: OAXACA
B26: Chihuahua | C26: 0.625 | D26: 0.625 | E26: 0.909 | F26: 25 | G26: 28 | H26: 41 | I26: 27 | J26: 30 | K26: 29 | L26: 29 | M26: 33 | N26: 36 | O26: 35 | P26: 36 | Q26: 24 | R26: 25 | S26: 26 | T26: 26 | U26: 26 | V26: 322 | W26: 70 | X26: 159 | Y26: 131 | Z26: 164 | AB26: 28.63 | AC26: -106.8 | AD26: 1421 | AE26: PUEBLA
B27: C. Juárez | C27: 0.625 | D27: 0.625 | E27: 0.833 | F27: 25 | G27: 29 | H27: 41 | I27: 28 | J27: 31 | K27: 29 | L27: 29 | M27: 33 | N27: 37 | O27: 35 | P27: 36 | Q27: 24 | R27: 25 | S27: 26 | T27: 27 | U27: 27 | V27: 322 | W27: 70 | X27: 159 | Y27: 131 | Z27: 164 | AB27: 28.7 | AC27: -106.1 | AD27: 1137 | AE27: QUERÉTARO
B28: H. del Parral | C28: 0.833 | D28: 0.833 | E28: 0.909 | F28: 25 | G28: 27 | H28: 39 | I28: 26 | J28: 28 | K28: 27 | L28: 27 | M28: 31 | N28: 34 | O28: 33 | P28: 34 | Q28: 23 | R28: 24 | S28: 25 | T28: 25 | U28: 25 | V28: 322 | W28: 70 | X28: 159 | Y28: 131 | Z28: 164 | AB28: 28.68 | AC28: -106.1 | AD28: 1620 | AE28: QUINTANA_ROO
A29: D.F. | B29: México (a) | C29: 0.909 | D29: 0.909 | E29: 0.909 | F29: 23 | G29: 23 | H29: 33 | I29: 20 | J29: 22 | K29: 22 | L29: 21 | M29: 26 | N29: 29 | O29: 28 | P29: 28 | Q29: 19 | R29: 21 | S29: 21 | T29: 21 | U29: 21 | V29: 272 | W29: 102 | X29: 140 | Y29: 114 | Z29: 134 | AB29: 19.43 | AC29: -99.13 | AD29: 2232 | AE29: SAN_LUIS_POTOSI
A30: DURANGO | B30: Durango | C30: 0.833 | D30: 0.833 | E30: 0.909 | F30: 24 | G30: 26 | H30: 37 | I30: 24 | J30: 27 | K30: 25 | L30: 25 | M30: 30 | N30: 33 | O30: 32 | P30: 32 | Q30: 22 | R30: 23 | S30: 24 | T30: 24 | U30: 24 | V30: 322 | W30: 70 | X30: 159 | Y30: 131 | Z30: 164 | AB30: 24.3 | AC30: -104.65 | AD30: 1888 | AE30: SINALOA
B31: Lerdo | C31: 0.556 | D31: 0.556 | E31: 0.714 | F31: 25 | G31: 30 | H31: 43 | I31: 29 | J31: 33 | K31: 31 | L31: 31 | M31: 35 | N31: 39 | O31: 37 | P31: 38 | Q31: 25 | R31: 26 | S31: 27 | T31: 28 | U31: 28 | V31: 322 | W31: 70 | X31: 159 | Y31: 131 | Z31: 164 | AB31: 25.54 | AC31: -103.52 | AD31: 1138 | AE31: SONORA
A32: GUANAJUATO | B32: Guanajuato | C32: 0.714 | D32: 0.714 | E32: 0.909 | F32: 24 | G32: 25 | H32: 36 | I32: 23 | J32: 25 | K32: 24 | L32: 24 | M32: 29 | N32: 32 | O32: 31 | P32: 31 | Q32: 21 | R32: 22 | S32: 23 | T32: 23 | U32: 23 | V32: 274 | W32: 91 | X32: 137 | Y32: 118 | Z32: 146 | AB32: 21.2 | AC32: -101.26 | AD32: 2016 | AE32: TABASCO
B33: León (b) | C33: 0.714 | D33: 0.714 | E33: 0.909 | F33: 25 | G33: 27 | H33: 38 | I33: 25 | J33: 28 | K33: 26 | L33: 26 | M33: 31 | N33: 34 | O33: 33 | P33: 33 | Q33: 22 | R33: 24 | S33: 24 | T33: 24 | U33: 25 | V33: 274 | W33: 91 | X33: 137 | Y33: 118 | Z33: 146 | AB33: 21.12 | AC33: -101.68 | AD33: 1807 | AE33: TAMAULIPAS
A34: GUERRERO | B34: Acapulco | C34: 0.526 | D34: 0.526 | E34: 0.625 | F34: 25 | G34: 31 | H34: 45 | I34: 31 | J34: 35 | K34: 33 | L34: 33 | M34: 36 | N34: 41 | O34: 39 | P34: 40 | Q34: 26 | R34: 28 | S34: 29 | T34: 29 | U34: 29 | V34: 274 | W34: 91 | X34: 137 | Y34: 118 | Z34: 146 | AA34: Sí | AB34: 16.87 | AC34: -99.89 | AD34: 93 | AE34: TLAXCALA
B35: Chilpancingo | C35: 0.714 | D35: 0.714 | E35: 0.909 | F35: 25 | G35: 27 | H35: 38 | I35: 25 | J35: 28 | K35: 27 | L35: 26 | M35: 31 | N35: 34 | O35: 33 | P35: 33 | Q35: 22 | R35: 24 | S35: 24 | T35: 25 | U35: 25 | V35: 274 | W35: 91 | X35: 137 | Y35: 118 | Z35: 146 | AB35: 17.55 | AC35: -99.5 | AD35: 1253 | AE35: VERACRUZ
B36: Zihuatanejo | C36: 0.556 | D36: 0.556 | E36: 0.833 | F36: 25 | G36: 29 | H36: 42 | I36: 29 | J36: 32 | K36: 30 | L36: 30 | M36: 34 | N36: 38 | O36: 36 | P36: 37 | Q36: 25 | R36: 26 | S36: 27 | T36: 27 | U36: 27 | V36: 274 | W36: 91 | X36: 137 | Y36: 118 | Z36: 146 | AA36: Sí | AB36: 17.64 | AC36: -101.55 | AD36: 14 | AE36: YUCATAN
A37: HIDALGO | B37: Pachuca | C37: 0.909 | D37: 0.909 | E37: 0.909 | F37: 22 | G37: 22 | H37: 31 | I37: 19 | J37: 20 | K37: 20 | L37: 20 | M37: 25 | N37: 27 | O37: 27 | P37: 26 | Q37: 18 | R37: 20 | S37: 20 | T37: 20 | U37: 20 | V37: 272 | W37: 102 | X37: 140 | Y37: 114 | Z37: 134 | AB37: 20.12 | AC37: -98.75 | AD37: 2385 | AE37: ZACATECAS
B38: Tulancingo | C38: 0.909 | D38: 0.909 | E38: 0.909 | F38: 23 | G38: 23 | H38: 32 | I38: 19 | J38: 21 | K38: 21 | L38: 20 | M38: 25 | N38: 28 | O38: 27 | P38: 27 | Q38: 19 | R38: 20 | S38: 20 | T38: 20 | U38: 21 | V38: 272 | W38: 102 | X38: 140 | Y38: 114 | Z38: 134 | AB38: 20.8 | AC38: -98.37 | AD38: 2160
A39: JALISCO | B39: Guadalajara ( c) | C39: 0.714 | D39: 0.714 | E39: 0.909 | F39: 25 | G39: 26 | H39: 38 | I39: 25 | J39: 27 | K39: 26 | L39: 26 | M39: 30 | N39: 34 | O39: 32 | P39: 33 | Q39: 22 | R39: 23 | S39: 24 | T39: 24 | U39: 24 | V39: 274 | W39: 91 | X39: 137 | Y39: 118 | Z39: 146 | AB39: 20.67 | AC39: -103.34 | AD39: 1545
B40: Huejucar | C40: 0.714 | D40: 0.714 | E40: 0.909 | F40: 24 | G40: 26 | H40: 38 | I40: 25 | J40: 27 | K40: 26 | L40: 26 | M40: 30 | N40: 34 | O40: 32 | P40: 33 | Q40: 22 | R40: 23 | S40: 24 | T40: 24 | U40: 24 | V40: 274 | W40: 91 | X40: 137 | Y40: 118 | Z40: 146 | AB40: 20.69 | AC40: -103.27 | AD40: 2000
B41: Lagos de Mor. | C41: 0.833 | D41: 0.833 | E41: 0.909 | F41: 23 | G41: 26 | H41: 37 | I41: 24 | J41: 26 | K41: 25 | L41: 25 | M41: 29 | N41: 33 | O41: 32 | P41: 32 | Q41: 21 | R41: 23 | S41: 23 | T41: 24 | U41: 24 | V41: 274 | W41: 91 | X41: 137 | Y41: 118 | Z41: 146 | AB41: 21.36 | AC41: -101.93 | AD41: 1884
B42: Ocotlán | C42: 0.714 | D42: 0.714 | E42: 0.909 | F42: 25 | G42: 27 | H42: 38 | I42: 25 | J42: 28 | K42: 26 | L42: 26 | M42: 30 | N42: 34 | O42: 33 | P42: 33 | Q42: 22 | R42: 24 | S42: 24 | T42: 24 | U42: 25 | V42: 274 | W42: 91 | X42: 137 | Y42: 118 | Z42: 146 | AB42: 20.35 | AC42: -102.77 | AD42: 1533
B43: Puerto Vallarta | C43: 0.526 | D43: 0.526 | E43: 0.625 | F43: 25 | G43: 31 | H43: 45 | I43: 31 | J43: 35 | K43: 33 | L43: 33 | M43: 37 | N43: 41 | O43: 39 | P43: 40 | Q43: 26 | R43: 28 | S43: 29 | T43: 29 | U43: 29 | V43: 274 | W43: 91 | X43: 137 | Y43: 118 | Z43: 146 | AA43: Sí | AB43: 20.62 | AC43: -105.23 | AD43: 10
A44: MÉXICO | B44: Chapingo, Texc. | C44: 0.833 | D44: 0.833 | E44: 0.909 | F44: 23 | G44: 23 | H44: 32 | I44: 20 | J44: 22 | K44: 22 | L44: 21 | M44: 26 | N44: 29 | O44: 28 | P44: 28 | Q44: 19 | R44: 21 | S44: 21 | T44: 21 | U44: 21 | V44: 274 | W44: 91 | X44: 137 | Y44: 118 | Z44: 146 | AB44: 20.49 | AC44: -100.95 | AD44: 1740
B45: Toluca | C45: 0.909 | D45: 0.909 | E45: 0.909 | F45: 22 | G45: 21 | H45: 29 | I45: 17 | J45: 18 | K45: 18 | L45: 18 | M45: 23 | N45: 25 | O45: 25 | P45: 24 | Q45: 17 | R45: 18 | S45: 18 | T45: 19 | U45: 19 | V45: 274 | W45: 91 | X45: 137 | Y45: 118 | Z45: 146 | AB45: 19.28 | AC45: -99.65 | AD45: 2667
A46: MCHOACAN | B46: Morelia | C46: 0.833 | D46: 0.833 | E46: 0.909 | F46: 24 | G46: 25 | H46: 35 | I46: 23 | J46: 25 | K46: 24 | L46: 24 | M46: 28 | N46: 31 | O46: 30 | P46: 30 | Q46: 21 | R46: 22 | S46: 23 | T46: 23 | U46: 23 | V46: 274 | W46: 91 | X46: 137 | Y46: 118 | Z46: 146 | AB46: 19.7 | AC46: -100.56 | AD46: 2087
B47: Lázaro Carden. | C47: 0.526 | D47: 0.526 | E47: 0.625 | F47: 25 | G47: 31 | H47: 46 | I47: 32 | J47: 35 | K47: 33 | L47: 33 | M47: 37 | N47: 41 | O47: 39 | P47: 40 | Q47: 26 | R47: 28 | S47: 29 | T47: 29 | U47: 29 | V47: 274 | W47: 91 | X47: 137 | Y47: 118 | Z47: 146 | AA47: Sí | AB47: 19.4 | AC47: -98.88 | AD47: 10
B48: Uruapan | C48: 0.833 | D48: 0.833 | E48: 0.909 | F48: 24 | G48: 25 | H48: 35 | I48: 23 | J48: 25 | K48: 24 | L48: 24 | M48: 28 | N48: 31 | O48: 30 | P48: 30 | Q48: 21 | R48: 22 | S48: 23 | T48: 23 | U48: 23 | V48: 274 | W48: 91 | X48: 137 | Y48: 118 | Z48: 146 | AB48: 19.42 | AC48: -102.5 | AD48: 1626
A49: MORELOS | B49: Cuernavaca | C49: 0.714 | D49: 0.714 | E49: 0.909 | F49: 25 | G49: 27 | H49: 39 | I49: 26 | J49: 28 | K49: 27 | L49: 27 | M49: 31 | N49: 34 | O49: 33 | P49: 34 | Q49: 22 | R49: 24 | S49: 25 | T49: 25 | U49: 25 | V49: 274 | W49: 91 | X49: 137 | Y49: 118 | Z49: 146 | AB49: 18.93 | AC49: -99.23 | AD49: 1558
B50: Cuautla | C50: 0.556 | D50: 0.556 | E50: 0.833 | F50: 25 | G50: 29 | H50: 41 | I50: 28 | J50: 31 | K50: 29 | L50: 29 | M50: 33 | N50: 37 | O50: 35 | P50: 36 | Q50: 24 | R50: 25 | S50: 26 | T50: 26 | U50: 27 | V50: 274 | W50: 91 | X50: 137 | Y50: 118 | Z50: 146 | AB50: 18.81 | AC50: -98.96 | AD50: 1301
A51: NAYARIT | B51: Tepic | C51: 0.714 | D51: 0.714 | E51: 0.909 | F51: 24 | G51: 27 | H51: 39 | I51: 26 | J51: 29 | K51: 27 | L51: 27 | M51: 31 | N51: 35 | O51: 34 | P51: 34 | Q51: 23 | R51: 24 | S51: 25 | T51: 25 | U51: 25 | V51: 274 | W51: 91 | X51: 137 | Y51: 118 | Z51: 146 | AA51: Sí | AB51: 21.5 | AC51: -104.89 | AD51: 930
A52: NUEVO LEON | B52: Monterrey (d) | C52: 0.556 | D52: 0.556 | E52: 0.714 | F52: 25 | G52: 30 | H52: 44 | I52: 30 | J52: 33 | K52: 31 | L52: 32 | M52: 35 | N52: 39 | O52: 37 | P52: 38 | Q52: 25 | R52: 27 | S52: 28 | T52: 28 | U52: 28 | V52: 274 | W52: 91 | X52: 137 | Y52: 118 | Z52: 146 | AB52: 25.67 | AC52: -100.3 | AD52: 529
A53: OAXACA | B53: Oaxaca | C53: 0.714 | D53: 0.714 | E53: 0.909 | F53: 24 | G53: 26 | H53: 38 | I53: 25 | J53: 27 | K53: 26 | L53: 26 | M53: 30 | N53: 34 | O53: 33 | P53: 33 | Q53: 22 | R53: 23 | S53: 24 | T53: 24 | U53: 24 | V53: 272 | W53: 102 | X53: 140 | Y53: 114 | Z53: 134 | AB53: 17.7 | AC53: -96.75 | AD53: 1550
B54: Salina Cruz | C54: 0.526 | D54: 0.526 | E54: 0.556 | F54: 25 | G54: 31 | H54: 46 | I54: 32 | J54: 36 | K54: 33 | L54: 34 | M54: 37 | N54: 41 | O54: 39 | P54: 41 | Q54: 26 | R54: 28 | S54: 29 | T54: 29 | U54: 29 | V54: 272 | W54: 102 | X54: 140 | Y54: 114 | Z54: 134 | AA54: Sí | AB54: 16.19 | AC54: -95.19 | AD54: 94
A55: PUEBLA | B55: Puebla | C55: 0.833 | D55: 0.833 | E55: 0.909 | F55: 24 | G55: 24 | H55: 34 | I55: 21 | J55: 23 | K55: 23 | L55: 22 | M55: 27 | N55: 30 | O55: 29 | P55: 29 | Q55: 20 | R55: 21 | S55: 22 | T55: 22 | U55: 22 | V55: 272 | W55: 102 | X55: 140 | Y55: 114 | Z55: 134 | AB55: 19.4 | AC55: -98.21 | AD55: 2150
B56: Atlixco | C56: 0.714 | D56: 0.714 | E56: 0.909 | F56: 23 | G56: 25 | H56: 35 | I56: 23 | J56: 25 | K56: 24 | L56: 24 | M56: 28 | N56: 31 | O56: 30 | P56: 30 | Q56: 21 | R56: 22 | S56: 23 | T56: 23 | U56: 23 | V56: 272 | W56: 102 | X56: 140 | Y56: 114 | Z56: 134 | AB56: 18.9 | AC56: -98.44 | AD56: 1841
B57: Tehuacán | C57: 0.714 | D57: 0.714 | E57: 0.909 | F57: 24 | G57: 25 | H57: 35 | I57: 23 | J57: 25 | K57: 24 | L57: 24 | M57: 28 | N57: 31 | O57: 31 | P57: 31 | Q57: 21 | R57: 22 | S57: 23 | T57: 23 | U57: 23 | V57: 272 | W57: 102 | X57: 140 | Y57: 114 | Z57: 134 | AB57: 18.47 | AC57: -97.4 | AD57: 1647
A58: QUERÉTARO | B58: Querétaro | C58: 0.833 | D58: 0.833 | E58: 0.909 | F58: 24 | G58: 26 | H58: 37 | I58: 24 | J58: 27 | K58: 26 | L58: 25 | M58: 30 | N58: 33 | O58: 32 | P58: 32 | Q58: 22 | R58: 23 | S58: 24 | T58: 24 | U58: 24 | V58: 274 | W58: 91 | X58: 137 | Y58: 118 | Z58: 146 | AB58: 20.59 | AC58: -100.39 | AD58: 1822
B59: San Juan del Río | C59: 0.833 | D59: 0.833 | E59: 0.909 | F59: 24 | G59: 24 | H59: 34 | I59: 22 | J59: 24 | K59: 23 | L59: 23 | M59: 27 | N59: 30 | O59: 29 | P59: 29 | Q59: 20 | R59: 21 | S59: 22 | T59: 22 | U59: 22 | V59: 274 | W59: 91 | X59: 137 | Y59: 118 | Z59: 146 | AB59: 20.39 | AC59: -99.98 | AD59: 1939
A60: QUINTANA ROO | B60: Cozumel | C60: 0.526 | D60: 0.526 | E60: 0.714 | F60: 25 | G60: 30 | H60: 44 | I60: 30 | J60: 33 | K60: 31 | L60: 32 | M60: 35 | N60: 39 | O60: 37 | P60: 38 | Q60: 25 | R60: 27 | S60: 28 | T60: 28 | U60: 28 | V60: 284 | W60: 95 | X60: 152 | Y60: 119 | Z60: 133 | AA60: Sí | AB60: 20.43 | AC60: -86.91 | AD60: 11
B61: Chetumal | C61: 0.526 | D61: 0.526 | E61: 0.625 | F61: 25 | G61: 31 | H61: 45 | I61: 31 | J61: 34 | K61: 32 | L61: 32 | M61: 36 | N61: 40 | O61: 38 | P61: 39 | Q61: 26 | R61: 27 | S61: 28 | T61: 29 | U61: 29 | V61: 284 | W61: 95 | X61: 152 | Y61: 119 | Z61: 133 | AA61: Sí | AB61: 18.5 | AC61: -88.3 | AD61: 16
B62: Cancún | C62: 0.526 | D62: 0.526 | E62: 0.625 | F62: 25 | G62: 31 | H62: 46 | I62: 32 | J62: 35 | K62: 33 | L62: 34 | M62: 37 | N62: 41 | O62: 39 | P62: 40 | Q62: 26 | R62: 28 | S62: 29 | T62: 29 | U62: 29 | V62: 284 | W62: 95 | X62: 152 | Y62: 119 | Z62: 133 | AA62: Sí | AB62: 21.16 | AC62: -86.84 | AD62: 12
B63: Playa Carmen | C63: 0.526 | D63: 0.526 | E63: 0.625 | F63: 25 | G63: 31 | H63: 45 | I63: 31 | J63: 35 | K63: 33 | L63: 33 | M63: 36 | N63: 41 | O63: 39 | P63: 40 | Q63: 26 | R63: 28 | S63: 29 | T63: 29 | U63: 29 | V63: 284 | W63: 95 | X63: 152 | Y63: 119 | Z63: 133 | AA63: Sí | AB63: 20.63 | AC63: -87.8 | AD63: 11
A64: SAN LUIS POTOSI | B64: Río Verde | C64: 0.556 | D64: 0.556 | E64: 0.909 | F64: 25 | G64: 28 | H64: 41 | I64: 27 | J64: 30 | K64: 29 | L64: 29 | M64: 33 | N64: 36 | O64: 35 | P64: 35 | Q64: 24 | R64: 25 | S64: 26 | T64: 26 | U64: 26 | V64: 274 | W64: 91 | X64: 137 | Y64: 118 | Z64: 146 | AB64: 21.93 | AC64: -99.99 | AD64: 996
B65: San Luis Potosí | C65: 0.833 | D65: 0.833 | E65: 0.909 | F65: 25 | G65: 24 | H65: 34 | I65: 22 | J65: 24 | K65: 23 | L65: 23 | M65: 27 | N65: 30 | O65: 30 | P65: 30 | Q65: 20 | R65: 22 | S65: 22 | T65: 22 | U65: 22 | V65: 274 | W65: 91 | X65: 137 | Y65: 118 | Z65: 146 | AB65: 22.15 | AC65: -100.98 | AD65: 1874
B66: Cd. Valles | C66: 0.526 | D66: 0.526 | E66: 0.556 | F66: 25 | G66: 31 | H66: 45 | I66: 32 | J66: 35 | K66: 33 | L66: 33 | M66: 37 | N66: 41 | O66: 39 | P66: 40 | Q66: 26 | R66: 28 | S66: 29 | T66: 29 | U66: 29 | V66: 274 | W66: 91 | X66: 137 | Y66: 118 | Z66: 146 | AA66: Sí | AB66: 23 | AC66: -99.1 | AD66: 88
B67: Matehuala | C67: 0.833 | D67: 0.833 | E67: 0.909 | F67: 25 | G67: 27 | H67: 39 | I67: 25 | J67: 28 | K67: 27 | L67: 27 | M67: 31 | N67: 34 | O67: 33 | P67: 34 | Q67: 22 | R67: 24 | S67: 25 | T67: 25 | U67: 25 | V67: 274 | W67: 91 | X67: 137 | Y67: 118 | Z67: 146 | AB67: 23.65 | AC67: -100.64 | AD67: 1588
A68: SINALOA | B68: Culiacán | C68: 0.526 | D68: 0.526 | E68: 0.556 | F68: 25 | G68: 31 | H68: 46 | I68: 32 | J68: 36 | K68: 33 | L68: 34 | M68: 37 | N68: 41 | O68: 39 | P68: 41 | Q68: 27 | R68: 28 | S68: 29 | T68: 29 | U68: 29 | V68: 322 | W68: 70 | X68: 159 | Y68: 131 | Z68: 164 | AA68: Sí | AB68: 24.8 | AC68: -107.39 | AD68: 68
B69: Mazatlán | C69: 0.526 | D69: 0.526 | E69: 0.625 | F69: 25 | G69: 31 | H69: 45 | I69: 31 | J69: 34 | K69: 32 | L69: 33 | M69: 36 | N69: 40 | O69: 38 | P69: 39 | Q69: 26 | R69: 27 | S69: 28 | T69: 29 | U69: 29 | V69: 322 | W69: 70 | X69: 159 | Y69: 131 | Z69: 164 | AA69: Sí | AB69: 23.24 | AC69: -106.41 | AD69: 10
B70: Guasave | C70: 0.526 | D70: 0.526 | E70: 0.556 | F70: 25 | G70: 32 | H70: 47 | I70: 33 | J70: 36 | K70: 34 | L70: 34 | M70: 38 | N70: 42 | O70: 40 | P70: 41 | Q70: 27 | R70: 28 | S70: 30 | T70: 30 | U70: 30 | V70: 322 | W70: 70 | X70: 159 | Y70: 131 | Z70: 164 | AA70: Sí | AB70: 25.57 | AC70: -108.47 | AD70: 17
B71: Mochis, Los | C71: 0.526 | D71: 0.526 | E71: 0.625 | F71: 25 | G71: 32 | H71: 47 | I71: 33 | J71: 36 | K71: 34 | L71: 34 | M71: 38 | N71: 42 | O71: 40 | P71: 41 | Q71: 27 | R71: 28 | S71: 30 | T71: 30 | U71: 30 | V71: 322 | W71: 70 | X71: 159 | Y71: 131 | Z71: 164 | AA71: Sí | AB71: 25.8 | AC71: -108.99 | AD71: 14
A72: SONORA | B72: Guaymas | C72: 0.476 | D72: 0.476 | E72: 0.556 | F72: 25 | G72: 32 | H72: 47 | I72: 33 | J72: 37 | K72: 34 | L72: 35 | M72: 38 | N72: 42 | O72: 40 | P72: 42 | Q72: 27 | R72: 29 | S72: 30 | T72: 30 | U72: 30 | V72: 322 | W72: 70 | X72: 159 | Y72: 131 | Z72: 164 | AA72: Sí | AB72: 27.91 | AC72: -110.9 | AD72: 15
B73: Hermosillo | C73: 0.476 | D73: 0.476 | E73: 0.526 | F73: 25 | G73: 33 | H73: 48 | I73: 34 | J73: 38 | K73: 35 | L73: 36 | M73: 39 | N73: 43 | O73: 41 | P73: 43 | Q73: 28 | R73: 29 | S73: 30 | T73: 31 | U73: 31 | V73: 322 | W73: 70 | X73: 159 | Y73: 131 | Z73: 164 | AB73: 29.9 | AC73: -110.96 | AD73: 212
B74: Obregón | C74: 0.526 | D74: 0.526 | E74: 0.625 | F74: 25 | G74: 31 | H74: 45 | I74: 31 | J74: 35 | K74: 33 | L74: 33 | M74: 37 | N74: 41 | O74: 39 | P74: 40 | Q74: 26 | R74: 28 | S74: 29 | T74: 29 | U74: 29 | V74: 322 | W74: 70 | X74: 159 | Y74: 131 | Z74: 164 | AA74: Sí | AB74: 27.49 | AC74: -109.94 | AD74: 40
B75: Navojoa | C75: 0.526 | D75: 0.526 | E75: 0.526 | F75: 25 | G75: 31 | H75: 45 | I75: 31 | J75: 35 | K75: 33 | L75: 33 | M75: 37 | N75: 41 | O75: 39 | P75: 40 | Q75: 26 | R75: 28 | S75: 29 | T75: 29 | U75: 29 | V75: 322 | W75: 70 | X75: 159 | Y75: 131 | Z75: 164 | AA75: Sí | AB75: 27.7 | AC75: -109.45 | AD75: 46
B76: Nogales | C76: 0.714 | D76: 0.714 | E76: 0.909 | F76: 25 | G76: 28 | H76: 40 | I76: 27 | J76: 30 | K76: 28 | L76: 28 | M76: 32 | N76: 36 | O76: 35 | P76: 35 | Q76: 23 | R76: 25 | S76: 26 | T76: 26 | U76: 26 | V76: 322 | W76: 70 | X76: 159 | Y76: 131 | Z76: 164 | AB76: 31.3 | AC76: -110.94 | AD76: 1220
A77: TABASCO | B77: Villahermosa | C77: 0.526 | D77: 0.526 | E77: 0.556 | F77: 25 | G77: 32 | H77: 46 | I77: 32 | J77: 36 | K77: 34 | L77: 34 | M77: 38 | N77: 42 | O77: 40 | P77: 41 | Q77: 27 | R77: 28 | S77: 29 | T77: 30 | U77: 30 | V77: 272 | W77: 102 | X77: 140 | Y77: 114 | Z77: 134 | AA77: Sí | AB77: 17.99 | AC77: -92.93 | AD77: 20
B78: Comalcalco | C78: 0.526 | D78: 0.526 | E78: 0.625 | F78: 25 | G78: 31 | H78: 45 | I78: 32 | J78: 35 | K78: 33 | L78: 33 | M78: 37 | N78: 41 | O78: 39 | P78: 40 | Q78: 26 | R78: 28 | S78: 29 | T78: 29 | U78: 29 | V78: 272 | W78: 102 | X78: 140 | Y78: 114 | Z78: 134 | AA78: Sí | AB78: 18.26 | AC78: -93.22 | AD78: 11
A79: TAMAULIPAS | B79: Cd. Victoria | C79: 0.526 | D79: 0.526 | E79: 0.625 | F79: 25 | G79: 31 | H79: 45 | I79: 31 | J79: 35 | K79: 33 | L79: 33 | M79: 36 | N79: 40 | O79: 38 | P79: 40 | Q79: 26 | R79: 27 | S79: 29 | T79: 29 | U79: 29 | V79: 272 | W79: 102 | X79: 140 | Y79: 114 | Z79: 134 | AB79: 23.74 | AC79: -99.14 | AD79: 321
B80: Tampico | C80: 0.526 | D80: 0.526 | E80: 0.625 | F80: 25 | G80: 30 | H80: 44 | I80: 30 | J80: 34 | K80: 32 | L80: 32 | M80: 36 | N80: 40 | O80: 38 | P80: 39 | Q80: 26 | R80: 27 | S80: 28 | T80: 28 | U80: 28 | V80: 272 | W80: 102 | X80: 140 | Y80: 114 | Z80: 134 | AA80: Sí | AB80: 22.25 | AC80: -97.87 | AD80: 25
B81: Matamoros | C81: 0.556 | D81: 0.556 | E81: 0.833 | F81: 25 | G81: 31 | H81: 45 | I81: 31 | J81: 34 | K81: 32 | L81: 32 | M81: 36 | N81: 40 | O81: 38 | P81: 39 | Q81: 26 | R81: 27 | S81: 28 | T81: 29 | U81: 29 | V81: 272 | W81: 102 | X81: 140 | Y81: 114 | Z81: 134 | AA81: Sí | AB81: 22.23 | AC81: -97.87 | AD81: 22
B82: Reynosa | C82: 0.556 | D82: 0.556 | E82: 0.625 | F82: 25 | G82: 31 | H82: 46 | I82: 32 | J82: 35 | K82: 33 | L82: 34 | M82: 37 | N82: 41 | O82: 39 | P82: 40 | Q82: 26 | R82: 28 | S82: 29 | T82: 29 | U82: 29 | V82: 272 | W82: 102 | X82: 140 | Y82: 114 | Z82: 134 | AB82: 26.7 | AC82: -98.3 | AD82: 46
B83: Nuevo Laredo | C83: 0.526 | D83: 0.526 | E83: 0.556 | F83: 25 | G83: 32 | H83: 46 | I83: 32 | J83: 36 | K83: 34 | L83: 34 | M83: 37 | N83: 42 | O83: 40 | P83: 41 | Q83: 27 | R83: 28 | S83: 29 | T83: 30 | U83: 30 | V83: 272 | W83: 102 | X83: 140 | Y83: 114 | Z83: 134 | AB83: 27.48 | AC83: -99.51 | AD83: 130
A84: TLAXCALA | B84: Tlaxcala | C84: 0.909 | D84: 0.909 | E84: 0.909 | F84: 23 | G84: 24 | H84: 33 | I84: 21 | J84: 23 | K84: 22 | L84: 22 | M84: 27 | N84: 29 | O84: 29 | P84: 28 | Q84: 20 | R84: 21 | S84: 21 | T84: 21 | U84: 22 | V84: 272 | W84: 102 | X84: 140 | Y84: 114 | Z84: 134 | AB84: 19.3 | AC84: -98.24 | AD84: 2299
A85: VERACRUZ | B85: Coatzacoalcos | C85: 0.526 | D85: 0.526 | E85: 0.625 | F85: 25 | G85: 31 | H85: 45 | I85: 31 | J85: 34 | K85: 32 | L85: 32 | M85: 36 | N85: 40 | O85: 38 | P85: 39 | Q85: 26 | R85: 27 | S85: 28 | T85: 29 | U85: 29 | V85: 272 | W85: 102 | X85: 140 | Y85: 114 | Z85: 134 | AA85: Sí | AB85: 18.14 | AC85: -94.43 | AD85: 27
B86: Córdoba | C86: 0.714 | D86: 0.714 | E86: 0.909 | F86: 24 | G86: 27 | H86: 38 | I86: 25 | J86: 28 | K86: 27 | L86: 27 | M86: 31 | N86: 34 | O86: 33 | P86: 33 | Q86: 22 | R86: 24 | S86: 24 | T86: 25 | U86: 25 | V86: 272 | W86: 102 | X86: 140 | Y86: 114 | Z86: 134 | AB86: 18.89 | AC86: -96.93 | AD86: 868
B87: Jalapa | C87: 0.714 | D87: 0.714 | E87: 0.909 | F87: 23 | G87: 25 | H87: 36 | I87: 23 | J87: 25 | K87: 24 | L87: 24 | M87: 29 | N87: 32 | O87: 31 | P87: 31 | Q87: 21 | R87: 22 | S87: 23 | T87: 23 | U87: 23 | V87: 272 | W87: 102 | X87: 140 | Y87: 114 | Z87: 134 | AA87: Sí | AB87: 19.54 | AC87: -96.91 | AD87: 1550
B88: Orizaba | C88: 0.714 | D88: 0.714 | E88: 0.909 | F88: 24 | G88: 26 | H88: 37 | I88: 24 | J88: 26 | K88: 25 | L88: 25 | M88: 29 | N88: 33 | O88: 32 | P88: 32 | Q88: 21 | R88: 23 | S88: 23 | T88: 24 | U88: 24 | V88: 272 | W88: 102 | X88: 140 | Y88: 114 | Z88: 134 | AB88: 18.85 | AC88: -97.1 | AD88: 1241
B89: Tuxpan | C89: 0.526 | D89: 0.526 | E89: 0.714 | F89: 25 | G89: 30 | H89: 43 | I89: 30 | J89: 33 | K89: 31 | L89: 31 | M89: 35 | N89: 39 | O89: 37 | P89: 38 | Q89: 25 | R89: 27 | S89: 28 | T89: 28 | U89: 28 | V89: 272 | W89: 102 | X89: 140 | Y89: 114 | Z89: 134 | AA89: Sí | AB89: 20.96 | AC89: -97.4 | AD89: 21
B90: Poza Rica | C90: 0.526 | D90: 0.526 | E90: 0.625 | F90: 25 | G90: 31 | H90: 45 | I90: 31 | J90: 35 | K90: 32 | L90: 33 | M90: 36 | N90: 40 | O90: 38 | P90: 40 | Q90: 26 | R90: 27 | S90: 29 | T90: 29 | U90: 29 | V90: 272 | W90: 102 | X90: 140 | Y90: 114 | Z90: 134 | AA90: Sí | AB90: 20.53 | AC90: -97.45 | AD90: 64
B91: Veracruz | C91: 0.526 | D91: 0.526 | E91: 0.625 | F91: 25 | G91: 31 | H91: 44 | I91: 31 | J91: 34 | K91: 32 | L91: 32 | M91: 36 | N91: 40 | O91: 38 | P91: 39 | Q91: 26 | R91: 27 | S91: 28 | T91: 28 | U91: 29 | V91: 272 | W91: 102 | X91: 140 | Y91: 114 | Z91: 134 | AA91: Sí | AB91: 20.51 | AC91: -97.44 | AD91: 76
A92: YUCATAN | B92: Mérida | C92: 0.526 | D92: 0.526 | E92: 0.625 | F92: 25 | G92: 31 | H92: 44 | I92: 31 | J92: 34 | K92: 32 | L92: 32 | M92: 36 | N92: 40 | O92: 38 | P92: 39 | Q92: 26 | R92: 27 | S92: 28 | T92: 28 | U92: 29 | V92: 284 | W92: 95 | X92: 152 | Y92: 119 | Z92: 133 | AA92: Sí | AB92: 20.97 | AC92: -89.63 | AD92: 12
B93: Progreso | C93: 0.526 | D93: 0.526 | E93: 0.714 | F93: 25 | G93: 30 | H93: 44 | I93: 30 | J93: 34 | K93: 31 | L93: 32 | M93: 35 | N93: 39 | O93: 38 | P93: 39 | Q93: 25 | R93: 27 | S93: 28 | T93: 28 | U93: 28 | V93: 284 | W93: 95 | X93: 152 | Y93: 119 | Z93: 133 | AA93: Sí | AB93: 21.28 | AC93: -89.67 | AD93: 2
B94: Valladolid | C94: 0.526 | D94: 0.526 | E94: 0.714 | F94: 25 | G94: 30 | H94: 43 | I94: 30 | J94: 33 | K94: 31 | L94: 31 | M94: 35 | N94: 39 | O94: 37 | P94: 38 | Q94: 25 | R94: 27 | S94: 28 | T94: 28 | U94: 28 | V94: 284 | W94: 95 | X94: 152 | Y94: 119 | Z94: 133 | AA94: Sí | AB94: 20.69 | AC94: -88.2 | AD94: 23
A95: ZACATECAS | B95: Fresnillo | C95: 0.833 | D95: 0.833 | E95: 0.909 | F95: 23 | G95: 24 | H95: 34 | I95: 21 | J95: 23 | K95: 23 | L95: 22 | M95: 27 | N95: 30 | O95: 29 | P95: 29 | Q95: 20 | R95: 21 | S95: 22 | T95: 22 | U95: 22 | V95: 274 | W95: 91 | X95: 137 | Y95: 118 | Z95: 146 | AB95: 23.18 | AC95: -102.87 | AD95: 2198
B96: Zacatecas | C96: 0.909 | D96: 0.909 | E96: 0.909 | F96: 22 | G96: 24 | H96: 34 | I96: 21 | J96: 23 | K96: 23 | L96: 22 | M96: 27 | N96: 30 | O96: 29 | P96: 29 | Q96: 20 | R96: 21 | S96: 22 | T96: 22 | U96: 22 | V96: 274 | W96: 91 | X96: 137 | Y96: 118 | Z96: 146 | AB96: 22.77 | AC96: -102.58 | AD96: 2481
A99: ( a ): Utilizar los mismos valores para los municipios conurbados del Estado de México que forman la Zona Metropolitana
A100: ( b ): Utilizar los mismos valores para las ciudades de Celaya, Irapuato, Salamanca y Silao
A101: ( c ): Utilizar los mismos valores para los municipios de: Tlaquepaque, Tonalá y Zapopan
A102: ( d ): Utilizar los mismos valores para los municipios de: Apodaca, Garza García, Guadalupe, San Nicolás de los Garza y Santa Catarina
